fUST/lending_fUST_20250609
["ID","MTS","AMOUNT","RATE_DAILY","PERIOD"]
[365125691,1749480639351,-440.0,0.00022191,4]
[365125693,1749480639361,-440.0,0.00022191,4]
[365125695,1749480639371,-440.0,0.00022191,4]
[365125697,1749480639380,-440.0,0.00022191,4]
[365125699,1749480639390,-1049.83,0.00022191,4]
[365125701,1749480639401,-337.24598555,0.00022191,4]
[365125703,1749480639410,-2557.18,0.00022191,4]
[365125705,1749480639420,-440.0,0.00022191,4]
[365125707,1749480639429,-440.0,0.00022191,4]
[365125709,1749480639438,-585.85,0.00022191,4]
[365125711,1749480639448,-440.0,0.00022191,4]
[365125713,1749480639458,-440.0,0.00022191,4]
[365125715,1749480639467,-441.51,0.00022191,4]
[365125717,1749480639477,-2489.2,0.00022191,4]
[365125719,1749480639487,-238.19491874,0.00022191,4]
[365125721,1749480639496,-612.32,0.00022191,4]
[365125723,1749480639506,-440.0,0.00022191,4]
[365125725,1749480639516,-1155.38,0.00022191,4]
[365125727,1749480639526,-440.0,0.00022191,4]
[365125729,1749480639537,-440.0,0.00022191,4]
[365125731,1749480639549,-440.0,0.00022191,4]
[365125733,1749480639558,-440.0,0.00022191,4]
[365125735,1749480639568,-2654.83,0.00022191,4]
[365125737,1749480639578,-683.48,0.00022191,4]
[365125739,1749480639587,-529.14,0.00022191,4]
[365125741,1749480639597,-1085.06,0.00022191,4]
[365125744,1749480639607,-440.0,0.00022191,4]
[365125746,1749480639616,-440.0,0.00022191,4]
[365125748,1749480639625,-448.33,0.00022191,4]
[365125750,1749480639635,-440.0,0.00022191,4]
[365125752,1749480639645,-440.0,0.00022191,4]
[365125754,1749480639655,-440.0,0.00022191,4]
[365125756,1749480639665,-1137.58,0.00022191,4]
[365125758,1749480639674,-1050.74,0.00022191,4]
[365125760,1749480639684,-440.0,0.00022191,4]
[365125762,1749480639693,-440.0,0.00022191,4]
[365125763,1749480639703,-660.77,0.00022191,4]
[365125765,1749480639712,-479.37,0.00022191,4]
[365125767,1749480639721,-440.0,0.00022191,4]
[365125769,1749480639731,-440.0,0.00022191,4]
[365125772,1749480639741,-1266.2,0.00022191,4]
[365125774,1749480639752,-440.0,0.00022191,4]
[365125776,1749480639761,-4909.14,0.00022191,4]
[365125778,1749480639771,-574.12,0.00022191,4]
[365125780,1749480639782,-641.05,0.00022191,4]
[365125782,1749480639793,-440.0,0.00022191,4]
[365125784,1749480639803,-1484.58,0.00022191,4]
[365125786,1749480639813,-2217.56,0.00022191,4]
[365125788,1749480639823,-2313.8,0.00022191,4]
[365125789,1749480639832,-440.0,0.00022191,4]
[365125790,1749480639842,-449.44,0.00022191,4]
[365125791,1749480639854,-440.0,0.00022191,4]
[365125792,1749480639865,-809.2127652,0.0002221,6]
[365125793,1749480639875,-500.0,0.00022218,2]
[365125794,1749480639885,-869.5,0.00022248,2]
[365125795,1749480639895,-809.2127652,0.00022314,7]
[365125796,1749480639904,-842.5625,0.00022342,2]
[365125797,1749480639914,-160.0,0.00022342,2]
[365125798,1749480639923,-160.0,0.00022347,2]
[365125799,1749480639932,-834.7738823,0.00022347,2]
[365125800,1749480639941,-229.64266968,0.00022347,2]
[365125801,1749480639951,-424.05420114,0.00022347,2]
[365125803,1749480639961,-213.08899333,0.00022347,2]
[365125805,1749480639971,-160.0,0.00022353,2]
[365125806,1749480639981,-160.0,0.00022353,2]
[365125807,1749480639991,-809.2127652,0.00022417,7]
[365125808,1749480640001,-330.73219277,0.00022449,2]
[365125809,1749480640012,-751.74,0.00022455,3]
[365125810,1749480640022,-500.0,0.00022464,2]
[365125811,1749480640032,-500.0,0.00022464,2]
[365125812,1749480640042,-500.0,0.00022464,2]
[365125813,1749480640053,-500.0,0.00022464,2]
[365125814,1749480640063,-500.0,0.00022464,2]
[365125815,1749480640073,-499.79465205,0.00022464,2]
[365125817,1749480640083,-500.0,0.00022464,2]
[365125818,1749480640092,-649.45432256,0.00022464,2]
[365125819,1749480640102,-440.0,0.00022465,4]
[365125820,1749480640111,-440.0,0.00022465,4]
[365125821,1749480640121,-552.77383732,0.00022465,4]
[365125822,1749480640131,-440.0,0.00022465,4]
[365125823,1749480640141,-440.0,0.00022465,4]
[365125824,1749480640151,-440.0,0.00022465,4]
[365125825,1749480640160,-440.0,0.00022465,2]
[365125826,1749480640170,-440.0,0.00022465,4]
[365125827,1749480640180,-440.0,0.00022465,4]
[365125828,1749480640191,-546.65155596,0.00022465,4]
[365125829,1749480640201,-440.0,0.00022465,4]
[365125830,1749480640211,-1049.83,0.00022465,4]
[365125831,1749480640221,-2557.18,0.00022465,4]
[365125833,1749480640231,-400.0,0.00022465,2]
[365125834,1749480640241,-400.0,0.00022465,2]
[365125835,1749480640250,-400.0,0.00022465,2]
[365125836,1749480640260,-297.87674849,0.00022465,4]
[365125837,1749480640270,-440.0,0.00022465,4]
[365125838,1749480640290,-585.85,0.00022465,4]
[365125839,1749480640303,-440.0,0.00022465,4]
[365125840,1749480640314,-441.51,0.00022465,4]
[365125841,1749480640325,-2489.2,0.00022465,4]
[365125842,1749480640335,-612.32,0.00022465,4]
[365125843,1749480640346,-440.0,0.00022465,4]
[365125844,1749480640356,-1155.38,0.00022465,4]
[365125845,1749480640366,-440.0,0.00022465,4]
[365125847,1749480640377,-440.0,0.00022465,4]
[365125848,1749480640387,-440.0,0.00022465,4]
[365125849,1749480640398,-2654.83,0.00022465,4]
[365125850,1749480640409,-683.48,0.00022465,4]
[365125851,1749480640419,-529.14,0.00022465,4]
[365125852,1749480640430,-1085.06,0.00022465,4]
[365125853,1749480640440,-440.0,0.00022465,4]
[365125854,1749480640450,-438.44474859,0.00022465,4]
[365125855,1749480640461,-448.33,0.00022465,4]
[365125856,1749480640471,-433.52,0.00022465,4]
[365125857,1749480640482,-440.0,0.00022465,4]
[365125858,1749480640492,-440.0,0.00022465,4]
[365125859,1749480640502,-1137.58,0.00022465,4]
[365125860,1749480640512,-1050.74,0.00022465,4]
[365125862,1749480640522,-440.0,0.00022465,4]
[365125864,1749480640532,-440.0,0.00022465,4]
[365125865,1749480640542,-660.77,0.00022465,4]
[365125866,1749480640552,-479.37,0.00022465,4]
[365125868,1749480640562,-440.0,0.00022465,4]
[365125869,1749480640572,-440.0,0.00022465,4]
[365125870,1749480640583,-1266.2,0.00022465,4]
[365125871,1749480640592,-440.0,0.00022465,4]
[365125872,1749480640602,-4909.14,0.00022465,4]
[365125873,1749480640611,-574.12,0.00022465,4]
[365125874,1749480640622,-641.05,0.00022465,4]
[365125875,1749480640632,-440.0,0.00022465,4]
[365125876,1749480640641,-1484.58,0.00022465,4]
[365125877,1749480640651,-2217.56,0.00022465,4]
[365125878,1749480640662,-2313.8,0.00022465,4]
[365125879,1749480640671,-440.0,0.00022465,4]
[365125880,1749480640681,-449.44,0.00022465,4]
[365125881,1749480640692,-440.0,0.00022465,4]
[365125882,1749480640701,-809.2127652,0.00022521,7]
[365125883,1749480640711,-283.43640186,0.00022558,2]
[365125884,1749480640722,-809.2127652,0.00022624,7]
[365125886,1749480640731,-809.2127652,0.00022728,7]
[365125889,1749480640741,-184.07278224,0.00022728,2]
[365125892,1749480640751,-440.0,0.00022739,4]
[365125894,1749480640760,-440.0,0.00022739,4]
[365125896,1749480640771,-440.0,0.00022739,4]
[365125898,1749480640783,-159.64802173,0.00022739,4]
[365125900,1749480640793,-440.0,0.00022739,4]
[365125902,1749480640803,-440.0,0.00022739,2]
[365125904,1749480640812,-440.0,0.00022739,4]
[365125906,1749480640822,-440.0,0.00022739,4]
[365125908,1749480640833,-440.0,0.00022739,4]
[365125910,1749480640842,-1049.83,0.00022739,4]
[365125912,1749480640852,-2557.18,0.00022739,4]
[365125914,1749480640863,-221.23862199,0.00022739,2]
[365125916,1749480640874,-440.0,0.00022739,4]
[365125918,1749480640883,-585.85,0.00022739,4]
[365125921,1749480640893,-440.0,0.00022739,4]
[365125923,1749480640902,-441.51,0.00022739,4]
[365125924,1749480640915,-2489.2,0.00022739,4]
[365125925,1749480640925,-612.32,0.00022739,4]
[365125926,1749480640935,-440.0,0.00022739,4]
[365125927,1749480640945,-1155.38,0.00022739,4]
[365125928,1749480640955,-440.0,0.00022739,4]
[365125929,1749480640965,-440.0,0.00022739,4]
[365125930,1749480640975,-440.0,0.00022739,4]
[365125931,1749480640985,-2654.83,0.00022739,4]
[365125932,1749480640995,-683.48,0.00022739,4]
[365125933,1749480641004,-529.14,0.00022739,4]
[365125934,1749480641014,-1085.06,0.00022739,4]
[365125935,1749480641024,-440.0,0.00022739,4]
[365125936,1749480641035,-448.33,0.00022739,4]
[365125937,1749480641045,-440.0,0.00022739,4]
[365125938,1749480641054,-440.0,0.00022739,4]
[365125939,1749480641064,-1137.58,0.00022739,4]
[365125940,1749480641074,-1050.74,0.00022739,4]
[365125941,1749480641083,-440.0,0.00022739,4]
[365125942,1749480641093,-440.0,0.00022739,4]
[365125943,1749480641103,-660.77,0.00022739,4]
[365125944,1749480641113,-479.37,0.00022739,4]
[365125945,1749480641122,-440.0,0.00022739,4]
[365125946,1749480641132,-440.0,0.00022739,4]
[365125947,1749480641142,-1266.2,0.00022739,4]
[365125948,1749480641152,-440.0,0.00022739,4]
[365125949,1749480641162,-4909.14,0.00022739,4]
[365125950,1749480641171,-574.12,0.00022739,4]
[365125951,1749480641184,-641.05,0.00022739,4]
[365125952,1749480641194,-440.0,0.00022739,4]
[365125953,1749480641204,-1484.58,0.00022739,4]
[365125954,1749480641213,-2217.56,0.00022739,4]
[365125955,1749480641223,-2313.8,0.00022739,4]
[365125956,1749480641233,-440.0,0.00022739,4]
[365125957,1749480641243,-449.44,0.00022739,4]
[365125958,1749480641397,-440.0,0.00022739,4]
[365125959,1749480641407,-343.09197168,0.00022765,2]
[365125960,1749480641416,-809.2127652,0.00022831,8]
[365125961,1749480641426,-199.84913971,0.000229,2]
[365125962,1749480641435,-809.2127652,0.00022934,8]
[365125963,1749480641445,-198.0,0.00023,7]
[365125964,1749480641455,-198.0,0.00023,7]
[365125965,1749480641465,-171.0,0.00023,7]
[365125966,1749480641474,-440.0,0.00023013,4]
[365125967,1749480641483,-440.0,0.00023013,4]
[365125968,1749480641493,-440.0,0.00023013,4]
[365125969,1749480641504,-440.0,0.00023013,4]
[365125970,1749480641514,-440.0,0.00023013,2]
[365125971,1749480641530,-440.0,0.00023013,4]
[365125972,1749480641541,-440.0,0.00023013,4]
[365125973,1749480641551,-440.0,0.00023013,4]
[365125974,1749480641560,-1049.83,0.00023013,4]
[365125975,1749480641570,-2557.18,0.00023013,4]
[365125976,1749480641579,-440.0,0.00023013,4]
[365125977,1749480641588,-585.85,0.00023013,4]
[365125978,1749480641598,-440.0,0.00023013,4]
[365125979,1749480641607,-441.51,0.00023013,4]
[365125980,1749480641617,-2489.2,0.00023013,4]
[365125981,1749480641627,-612.32,0.00023013,4]
[365125982,1749480641636,-440.0,0.00023013,4]
[365125983,1749480641646,-1155.38,0.00023013,4]
[365125984,1749480641656,-440.0,0.00023013,4]
[365125985,1749480641666,-440.0,0.00023013,4]
[365125986,1749480641675,-440.0,0.00023013,4]
[365125987,1749480641686,-2654.83,0.00023013,4]
[365125988,1749480641696,-683.48,0.00023013,4]
[365125989,1749480641706,-529.14,0.00023013,4]
[365125990,1749480641716,-1085.06,0.00023013,4]
[365125991,1749480641726,-440.0,0.00023013,4]
[365125992,1749480641736,-448.33,0.00023013,4]
[365125993,1749480641745,-440.0,0.00023013,4]
[365125994,1749480641755,-440.0,0.00023013,4]
[365125995,1749480641764,-1137.58,0.00023013,4]
[365125996,1749480641775,-1050.74,0.00023013,4]
[365125997,1749480641788,-440.0,0.00023013,4]
[365125998,1749480641798,-440.0,0.00023013,4]
[365125999,1749480641807,-660.77,0.00023013,4]
[365126000,1749480641817,-479.37,0.00023013,4]
[365126001,1749480641826,-440.0,0.00023013,4]
[365126002,1749480641836,-187.41408605,0.00023013,4]
[365126003,1749480641846,-1266.2,0.00023013,4]
[365126004,1749480641855,-440.0,0.00023013,4]
[365126005,1749480641866,-4909.14,0.00023013,4]
[365126006,1749480641876,-574.12,0.00023013,4]
[365126007,1749480641886,-641.05,0.00023013,4]
[365126008,1749480641896,-440.0,0.00023013,4]
[365126009,1749480641905,-1484.58,0.00023013,4]
[365126010,1749480641915,-2217.56,0.00023013,4]
[365126011,1749480641925,-2313.8,0.00023013,4]
[365126012,1749480641934,-440.0,0.00023013,4]
[365126013,1749480641944,-440.0,0.00023013,4]
[365126014,1749480641954,-809.2127652,0.00023038,8]
[365126015,1749480641963,-809.2127652,0.00023141,8]
[365126016,1749480641973,-809.2127652,0.00023245,8]
[365126017,1749480641983,-440.0,0.00023287,4]
[365126018,1749480641992,-440.0,0.00023287,4]
[365126019,1749480642002,-440.0,0.00023287,4]
[365126020,1749480642012,-440.0,0.00023287,4]
[365126021,1749480642022,-440.0,0.00023287,2]
[365126022,1749480642031,-440.0,0.00023287,4]
[365126023,1749480642042,-440.0,0.00023287,4]
[365126024,1749480642051,-440.0,0.00023287,4]
[365126025,1749480642061,-1049.83,0.00023287,4]
[365126026,1749480642071,-2557.18,0.00023287,4]
[365126027,1749480642081,-440.0,0.00023287,4]
[365126028,1749480642090,-585.85,0.00023287,4]
[365126029,1749480642100,-440.0,0.00023287,4]
[365126030,1749480642109,-441.51,0.00023287,4]
[365126031,1749480642119,-2489.2,0.00023287,4]
[365126032,1749480642131,-612.32,0.00023287,4]
[365126033,1749480642140,-440.0,0.00023287,4]
[365126034,1749480642150,-1155.38,0.00023287,4]
[365126035,1749480642159,-440.0,0.00023287,4]
[365126036,1749480642169,-440.0,0.00023287,4]
[365126037,1749480642179,-495.73519492,0.00023287,4]
[365126038,1749480642189,-2654.83,0.00023287,4]
[365126039,1749480642199,-683.48,0.00023287,4]
[365126040,1749480642208,-529.14,0.00023287,4]
[365126041,1749480642218,-1085.06,0.00023287,4]
[365126042,1749480642227,-440.0,0.00023287,4]
[365126043,1749480642237,-448.33,0.00023287,4]
[365126044,1749480642246,-440.0,0.00023287,4]
[365126045,1749480642256,-440.0,0.00023287,4]
[365126046,1749480642265,-1137.58,0.00023287,4]
[365126047,1749480642275,-1050.74,0.00023287,4]
[365126048,1749480642285,-440.0,0.00023287,4]
[365126049,1749480642295,-440.0,0.00023287,4]
[365126050,1749480642304,-660.77,0.00023287,4]
[365126051,1749480642313,-479.37,0.00023287,4]
[365126052,1749480642323,-440.0,0.00023287,4]
[365126053,1749480642332,-1266.2,0.00023287,4]
[365126054,1749480642342,-440.0,0.00023287,4]
[365126055,1749480642352,-4909.14,0.00023287,4]
[365126056,1749480642362,-574.12,0.00023287,4]
[365126057,1749480642371,-641.05,0.00023287,4]
[365126058,1749480642381,-440.0,0.00023287,4]
[365126059,1749480642390,-1484.58,0.00023287,4]
[365126060,1749480642400,-2217.56,0.00023287,4]
[365126061,1749480642409,-2313.8,0.00023287,4]
[365126062,1749480642419,-440.0,0.00023287,4]
[365126063,1749480642429,-809.2127652,0.00023348,9]
[365126064,1749480642439,-199.84913971,0.000234,2]
[365126065,1749480642448,-809.2127652,0.00023452,9]
[365126066,1749480642458,-215.0738,0.00023491,2]
[365126067,1749480642467,-565.807612,0.00023519,3]
[365126068,1749480642477,-809.2127652,0.00023555,9]
[365126069,1749480642487,-151.0,0.00023561,7]
[365126070,1749480642496,-151.0,0.00023561,7]
[365126071,1749480642505,-151.0,0.00023561,7]
[365126072,1749480642514,-217.693346,0.00023561,7]
[365126073,1749480642524,-217.693346,0.00023561,7]
[365126074,1749480642534,-380.950226,0.00023561,7]
[365126075,1749480642543,-380.950226,0.00023561,7]
[365126076,1749480642552,-440.0,0.00023561,4]
[365126077,1749480642562,-440.0,0.00023561,4]
[365126078,1749480642571,-440.0,0.00023561,4]
[365126079,1749480642581,-440.0,0.00023561,4]
[365126080,1749480642590,-440.0,0.00023561,2]
[365126081,1749480642599,-200.0,0.00023561,4]
[365126082,1749480642609,-200.0,0.00023561,4]
[365126083,1749480642618,-200.0,0.00023561,4]
[365126084,1749480642628,-200.0,0.00023561,4]
[365126085,1749480642638,-200.0,0.00023561,4]
[365126086,1749480642647,-200.0,0.00023561,4]
[365126087,1749480642656,-200.0,0.00023561,4]
[365126088,1749480642666,-440.0,0.00023561,4]
[365126089,1749480642675,-440.0,0.00023561,4]
[365126090,1749480642684,-440.0,0.00023561,4]
[365126091,1749480642694,-1049.83,0.00023561,4]
[365126092,1749480642703,-2557.18,0.00023561,4]
[365126093,1749480642713,-440.0,0.00023561,4]
[365126094,1749480642722,-585.85,0.00023561,4]
[365126095,1749480642732,-440.0,0.00023561,4]
[365126096,1749480642741,-441.51,0.00023561,4]
[365126097,1749480642751,-2489.2,0.00023561,4]
[365126098,1749480642760,-612.32,0.00023561,4]
[365126099,1749480642769,-440.0,0.00023561,4]
[365126100,1749480642780,-1155.38,0.00023561,4]
[365126101,1749480642791,-440.0,0.00023561,4]
[365126102,1749480642800,-440.0,0.00023561,4]
[365126103,1749480642810,-2654.83,0.00023561,4]
[365126104,1749480642819,-683.48,0.00023561,4]
[365126105,1749480642830,-529.14,0.00023561,4]
[365126106,1749480642839,-1085.06,0.00023561,4]
[365126107,1749480642849,-440.0,0.00023561,4]
[365126108,1749480642859,-448.33,0.00023561,4]
[365126109,1749480642869,-440.0,0.00023561,4]
[365126110,1749480642879,-440.0,0.00023561,4]
[365126111,1749480642888,-1137.58,0.00023561,4]
[365126112,1749480642898,-1050.74,0.00023561,4]
[365126113,1749480642907,-377.90953021,0.00023561,4]
[365126114,1749480642917,-440.0,0.00023561,4]
[365126115,1749480642927,-660.77,0.00023561,4]
[365126116,1749480642938,-479.37,0.00023561,4]
[365126117,1749480642950,-440.0,0.00023561,4]
[365126118,1749480642959,-1266.2,0.00023561,4]
[365126119,1749480642969,-440.0,0.00023561,4]
[365126120,1749480642978,-4909.14,0.00023561,4]
[365126121,1749480642989,-574.12,0.00023561,4]
[365126122,1749480642998,-641.05,0.00023561,4]
[365126123,1749480643007,-440.0,0.00023561,4]
[365126124,1749480643017,-1484.58,0.00023561,4]
[365126125,1749480643027,-2217.56,0.00023561,4]
[365126126,1749480643037,-2313.8,0.00023561,4]
[365126127,1749480643046,-440.0,0.00023561,4]
[365126128,1749480643056,-582.41,0.000236,7]
[365126129,1749480643066,-184.07278224,0.0002364,2]
[365126130,1749480643076,-809.2127652,0.00023659,9]
[365126131,1749480643086,-809.2127652,0.00023762,9]
[365126132,1749480643096,-151.0,0.00023835,7]
[365126133,1749480643106,-162.536079,0.00023835,7]
[365126134,1749480643116,-151.0,0.00023835,7]
[365126135,1749480643126,-151.0,0.00023835,7]
[365126136,1749480643136,-217.693346,0.00023835,7]
[365126137,1749480643145,-217.693346,0.00023835,7]
[365126138,1749480643155,-380.950226,0.00023835,7]
[365126139,1749480643165,-380.950226,0.00023835,7]
[365126140,1749480643175,-440.0,0.00023835,4]
[365126141,1749480643185,-440.0,0.00023835,4]
[365126142,1749480643194,-440.0,0.00023835,4]
[365126143,1749480643204,-440.0,0.00023835,4]
[365126144,1749480643214,-440.0,0.00023835,2]
[365126145,1749480643223,-200.0,0.00023835,4]
[365126146,1749480643233,-440.0,0.00023835,4]
[365126147,1749480643242,-440.0,0.00023835,4]
[365126148,1749480643252,-440.0,0.00023835,4]
[365126149,1749480643262,-1049.83,0.00023835,4]
[365126150,1749480643272,-2557.18,0.00023835,4]
[365126151,1749480643284,-440.0,0.00023835,4]
[365126152,1749480643293,-585.85,0.00023835,4]
[365126154,1749480643303,-440.0,0.00023835,4]
[365126155,1749480643313,-441.51,0.00023835,4]
[365126156,1749480643324,-2489.2,0.00023835,4]
[365126157,1749480643334,-612.32,0.00023835,4]
[365126158,1749480643344,-440.0,0.00023835,4]
[365126159,1749480643355,-1155.38,0.00023835,4]
[365126160,1749480643365,-440.0,0.00023835,4]
[365126161,1749480643377,-440.0,0.00023835,4]
[365126162,1749480643387,-2654.83,0.00023835,4]
[365126163,1749480643397,-683.48,0.00023835,4]
[365126164,1749480643407,-529.14,0.00023835,4]
[365126165,1749480643417,-1085.06,0.00023835,4]
[365126166,1749480643427,-440.0,0.00023835,4]
[365126167,1749480643437,-448.33,0.00023835,4]
[365126169,1749480643446,-440.0,0.00023835,4]
[365126171,1749480643456,-440.0,0.00023835,4]
[365126173,1749480643465,-1137.58,0.00023835,4]
[365126174,1749480643475,-1050.74,0.00023835,4]
[365126176,1749480643485,-440.0,0.00023835,4]
[365126177,1749480643495,-660.77,0.00023835,4]
[365126178,1749480643506,-479.37,0.00023835,4]
[365126179,1749480643515,-440.0,0.00023835,4]
[365126180,1749480643525,-1266.2,0.00023835,4]
[365126181,1749480643534,-440.0,0.00023835,4]
[365126182,1749480643544,-4909.14,0.00023835,4]
[365126183,1749480643553,-574.12,0.00023835,4]
[365126184,1749480643572,-641.05,0.00023835,4]
[365126185,1749480643584,-440.0,0.00023835,4]
[365126187,1749480643594,-1484.58,0.00023835,4]
[365126189,1749480643604,-2217.56,0.00023835,4]
[365126191,1749480643614,-2313.8,0.00023835,4]
[365126192,1749480643623,-440.0,0.00023835,4]
[365126194,1749480643633,-809.2127652,0.00023866,10]
[365126196,1749480643643,-963.0,0.00023873,2]
[365126198,1749480643652,-653.0,0.00023873,2]
[365126199,1749480643662,-2160.0,0.00023873,2]
[365126200,1749480643673,-199.84913971,0.00023899,2]
[365126201,1749480643682,-198.0,0.000239,15]
[365126202,1749480643692,-198.0,0.000239,15]
[365126203,1749480643702,-5377.13136774,0.000239,2]
[365126204,1749480643712,-786.31037984,0.000239,2]
[365126205,1749480643722,-809.2127652,0.00023969,10]
[365126206,1749480643732,-786.31037984,0.00023972,2]
[365126207,1749480643742,-500.0,0.00023973,2]
[365126208,1749480643752,-500.0,0.00023973,2]
[365126209,1749480643762,-500.0,0.00023973,2]
[365126210,1749480643773,-500.0,0.00023973,2]
[365126211,1749480643785,-500.0,0.00023973,2]
[365126212,1749480643795,-500.0,0.00023973,2]
[365126213,1749480643805,-500.0,0.00023973,2]
[365126214,1749480643815,-600.0,0.00023973,2]
[365126215,1749480643825,-505.69346178,0.00023973,2]
[365126216,1749480643835,-3007.37,0.00023998,4]
[365126217,1749480643845,-1138.34,0.00023998,4]
[365126218,1749480643855,-219085.43304847,0.00023999,15]
[365126219,1749480643877,-3117.44880411,0.00023999,15]
[365126220,1749480643889,-847.71209681,0.00023999,15]
[365126221,1749480644264,-449.44,0.00023013,4]
[365126222,1749480644274,-440.0,0.00023287,4]
[365126223,1749480644285,-449.44,0.00023287,4]
[365126224,1749480644295,-440.0,0.00023561,4]
[365126225,1749480644305,-449.44,0.00023561,4]
[365126226,1749480644315,-275.13,0.00023835,4]
[365126227,1749480644326,-449.44,0.00023835,4]
[365126228,1749480644336,-13753.89056446,0.00023999,15]
[365126229,1749480644348,-49344.30298679,0.00023999,15]
[365126240,1749480646580,-1138.69676212,0.00023999,15]
[365126242,1749480646716,-687.63105915,0.00023999,15]
[365126243,1749480646729,-532.2648,0.00023999,15]
[365126249,1749480985901,4178.0,0.00024649,60]
[365126250,1749481069040,1042.0,0.00024649,60]
[365126269,1749481582679,159.977439,0.00013699,2]
[365126300,1749481832873,-819.0,0.00020199,2]
[365126302,1749481832885,-8558.37588274,0.000202,7]
[365126304,1749481832894,-194.90032267,0.00020317,2]
[365126305,1749481832904,-201.06837048,0.00020317,2]
[365126306,1749481832915,-300.0,0.00020599,2]
[365126307,1749481832924,-300.0,0.00020599,2]
[365126308,1749481832934,-300.0,0.00020599,2]
[365126309,1749481832944,-300.0,0.00020599,2]
[365126310,1749481832955,-3727.21890563,0.000206,7]
[365126311,1749481832964,-1358.28,0.0002068,2]
[365126312,1749481832974,-157.535346,0.00020768,2]
[365126313,1749481832984,-638.45538746,0.00020778,2]
[365126314,1749481832993,-2315.3087286,0.000209,4]
[365126315,1749481833003,-747.9591807,0.00020956,2]
[365126316,1749481833012,-15793.26732213,0.00021,2]
[365126317,1749481833022,-1062.392,0.00021007,2]
[365126318,1749481833032,-2315.30872856,0.00021038,4]
[365126319,1749481833042,-2315.30872856,0.00021176,4]
[365126320,1749481833052,-500.0,0.00021313,2]
[365126321,1749481833062,-500.0,0.00021313,2]
[365126322,1749481833073,-437.56862847,0.00021313,2]
[365126323,1749481833082,-500.0,0.00021313,2]
[365126324,1749481833092,-500.0,0.00021313,2]
[365126325,1749481833104,-500.0,0.00021313,2]
[365126326,1749481833114,-513.97988055,0.00021313,2]
[365126327,1749481833124,-2315.30872856,0.00021314,5]
[365126328,1749481833134,-2315.30872856,0.00021452,5]
[365126329,1749481833144,-2315.30872856,0.0002159,5]
[365126330,1749481833153,-2037.42,0.00021619,2]
[365126331,1749481833164,-2315.30872856,0.00021728,5]
[365126332,1749481833174,-2315.30872856,0.00021866,6]
[365126333,1749481833185,-203.74,0.00021907,2]
[365126334,1749481833195,-300.0,0.00021914,2]
[365126335,1749481833205,-479.07022859,0.00021916,2]
[365126336,1749481833216,-261.947,0.00021916,2]
[365126337,1749481833227,-500.0,0.00021916,2]
[365126338,1749481833240,-598.57743072,0.00021916,2]
[365126339,1749481833250,-500.0,0.00021916,2]
[365126340,1749481833260,-500.0,0.00021916,2]
[365126341,1749481833270,-500.0,0.00021916,2]
[365126342,1749481833282,-500.0,0.00021916,2]
[365126343,1749481833293,-400.0,0.00021917,4]
[365126344,1749481833303,-440.0,0.00021917,4]
[365126345,1749481833313,-440.0,0.00021917,4]